bitfinex/quotes_ETHUSD_20250106
["timestamp","ask_amount","ask_price","bid_price","bid_amount"]
[1736192086227,2.07994936,3691.5,3691.4,35.0]
[1736192086729,0.0075,3691.5,3691.4,35.0]
[1736192087109,0.0075,3691.2,3690.6,0.7633]
[1736192087639,0.0075,3691.2,3690.7,35.0]
[1736192088001,2.74296558,3691.3,3690.7,35.0]
[1736192088002,0.0075,3691.3,3690.7,35.0]
[1736192088207,0.0075,3691.3,3690.6,0.7633]
[1736192088809,0.0075,3691.3,3691.1,35.0]
[1736192089214,0.20567098,3691.2,3691.1,35.0]
[1736192089427,0.0075,3691.2,3691.1,35.0]
[1736192090312,0.9460344,3691.2,3691.1,35.0]
[1736192094113,2.35387808,3691.2,3691.1,35.0]
[1736192095417,0.9385344,3691.2,3691.1,35.786]
[1736192096778,0.0075,3691.6,3691.1,35.786]
[1736192097120,0.0075,3691.6,3691.1,1.31543472]
[1736192097603,0.0075,3691.6,3691.5,35.0]
[1736192098129,5.91136938,3691.6,3691.5,35.0]
[1736192098421,6.71946938,3691.6,3691.5,35.0]
[1736192099029,4.14402112,3691.6,3691.5,35.0]
[1736192099378,7.62250869,3691.6,3691.5,35.0]
[1736192100329,4.29408757,3691.6,3691.5,35.0]
[1736192100623,3.16064087,3691.6,3691.5,35.0]
[1736192101427,5.86949087,3691.6,3691.5,35.0]
[1736192101596,3.16064087,3691.6,3691.5,35.0]
[1736192102714,5.86949087,3691.6,3691.5,35.0]
[1736192103022,7.00073253,3691.6,3691.5,35.0]
[1736192103680,5.59370801,3691.6,3691.5,35.0]
[1736192104322,8.16915627,3691.6,3691.5,35.0]
[1736192106111,9.57590228,3691.6,3691.5,35.0]
[1736192108026,11.45160475,3691.6,3691.5,35.0]
[1736192109647,8.06805649,3691.6,3691.5,35.0]
[1736192109854,7.89366478,3691.6,3691.5,35.0]
[1736192110654,8.76780228,3691.6,3691.5,35.0]
[1736192111241,9.57360228,3691.6,3691.5,35.0]
[1736192111865,11.27491304,3691.6,3691.5,35.0]
[1736192112409,0.0075,3690.9,3689.8,0.8068]
[1736192112613,2.71717,3690.5,3689.8,0.8068]
[1736192112855,0.0075,3690.4,3689.8,0.82926946]
[1736192113027,0.0075,3690.4,3689.8,3.51696]
[1736192113326,0.0075,3690.4,3689.9,0.8068]
[1736192113526,0.0075,3690.7,3690.3,35.0]
[1736192113942,2.75088986,3690.7,3690.3,35.0]
[1736192114130,0.0075,3690.5,3690.3,35.0]
[1736192114324,2.75104171,3690.5,3690.3,35.0]
[1736192114545,2.71717,3690.5,3690.3,35.0]
[1736192114749,2.75104235,3690.5,3690.3,35.0]
[1736192116168,2.71723,3690.4,3690.3,35.0]
[1736192116463,0.0075,3690.4,3690.3,35.7501]
[1736192116611,0.0075,3690.4,3690.3,35.0]
[1736192118464,1.13518719,3690.6,3690.3,35.7636]
[1736192118644,1.13518719,3690.6,3690.4,0.02245805]
[1736192118818,1.13518719,3690.6,3690.5,3.46375]
[1736192119162,1.13518719,3690.6,3690.5,38.46375]
[1736192119660,0.0075,3691.2,3690.6,3.47923]
[1736192120346,0.0075,3691.2,3691.1,35.0]
[1736192120543,0.0075,3691.4,3691.1,35.0]
[1736192120731,0.0075,3691.4,3690.6,3.47923]
[1736192121253,0.0075,3691.4,3691.3,35.0]
[1736192123520,0.0075,3691.5,3691.3,35.0]
[1736192126083,2.35460297,3691.4,3691.3,35.0]
[1736192129355,0.94634119,3691.4,3691.3,35.0]
[1736192130487,0.0075,3691.4,3691.3,35.0]
[1736192132197,0.06251203,3691.4,3691.3,35.0]
[1736192133298,1.00142209,3691.4,3691.3,35.0]
[1736192133645,4.62278792,3691.4,3691.3,35.0]
[1736192133965,7.99673618,3691.4,3691.3,35.0]
[1736192134121,7.96487809,3691.4,3691.3,35.0]
[1736192135377,8.53247169,3691.4,3691.3,35.0]
[1736192136505,7.73397169,3691.4,3691.3,35.0]
[1736192137323,0.0075,3691.3,3691.0,0.7552]
[1736192137626,0.0075,3691.1,3691.0,0.7552]
[1736192137776,0.06228552,3691.1,3691.0,0.7552]
[1736192137980,0.05478552,3691.1,3691.0,0.7552]
[1736192138219,2.34731304,3691.4,3691.0,0.7552]
[1736192138377,0.06229078,3691.3,3691.0,0.7552]
[1736192138575,1.19786946,3691.3,3691.0,0.7552]
[1736192140010,0.06229078,3691.3,3691.0,0.7552]
[1736192140978,0.05479078,3691.3,3691.0,0.7552]
[1736192141227,1.13557868,3691.5,3691.4,2.70899]
[1736192141522,1.18850828,3691.5,3691.4,3.46419]
[1736192142323,0.0529296,3691.5,3691.4,3.46419]
[1736192142704,1.13557868,3692.0,3691.4,3.46419]
[1736192142913,0.05293279,3691.5,3691.4,3.46419]
[1736192143108,1.13557868,3692.0,3691.4,3.46419]
[1736192143329,0.05293279,3691.5,3691.4,3.46419]
[1736192143494,1.13557868,3692.0,3691.4,3.46419]
[1736192143700,0.05292586,3691.5,3691.4,3.46419]
[1736192144014,1.14307868,3692.2,3691.4,3.46419]
[1736192144210,0.0075,3692.0,3691.4,3.46419]
[1736192144414,0.05293638,3691.9,3691.4,3.46419]
[1736192146030,0.05293638,3691.9,3691.0,3.24969286]
[1736192146031,0.05293638,3691.9,3691.7,0.8211]
[1736192146232,1.13557868,3692.2,3692.0,2.70854]
[1736192146550,1.13557868,3692.2,3692.1,0.02242624]
[1736192146753,0.0075,3692.1,3691.1,0.8211]
[1736192146901,2.57544826,3691.9,3691.1,0.8211]
[1736192147101,2.70862,3692.0,3691.1,0.8211]
[1736192147303,0.0075,3691.9,3691.2,0.55671517]
[1736192147497,5.53199991,3692.7,3691.8,0.8211]
[1736192147498,1.13557868,3692.7,3691.8,0.8211]
[1736192147697,1.13557868,3692.7,3691.9,0.02242371]
[1736192148000,0.0075,3692.6,3691.8,0.8211]
[1736192148316,0.0075,3692.6,3691.8,3.5298]
[1736192150247,0.7685,3692.9,3692.0,0.5313533]
[1736192150420,1.13557868,3693.0,3692.3,0.7617]
[1736192150744,1.13557868,3693.0,3692.4,0.02241918]
[1736192151110,0.0075,3692.8,3692.4,0.02241918]
[1736192151316,0.0075,3692.8,3692.3,0.7617]
[1736192151503,0.04865482,3692.7,3692.4,0.02241923]
[1736192151903,0.0075,3692.8,3692.4,0.02241923]
[1736192152104,0.04865219,3692.6,3692.4,0.02241923]
[1736192152341,0.0075,3692.8,3692.4,0.02241923]
[1736192152544,0.04864956,3692.5,3692.4,0.02241923]
[1736192152745,0.0075,3693.1,3692.3,0.7617]
[1736192152946,0.0075,3692.4,3691.8,0.8203]
[1736192153829,0.0075,3692.5,3691.8,0.8203]
[1736192154030,0.0075,3692.3,3691.9,0.53330442]
[1736192154235,0.04884989,3692.2,3691.9,0.53330442]
[1736192154438,0.0075,3692.3,3691.9,0.53330442]
[1736192154623,0.04884989,3692.2,3691.9,0.53330442]
[1736192154951,0.0075,3692.5,3691.9,0.53330442]
[1736192155411,0.0075,3692.3,3691.9,0.53330442]
[1736192155612,0.04883219,3692.2,3691.9,0.53330442]
[1736192155813,0.0075,3692.3,3691.9,0.53330442]
[1736192156158,0.04883219,3692.2,3691.9,0.53330442]
[1736192156487,0.0075,3692.5,3691.9,0.53330442]
[1736192156657,0.04882956,3692.1,3691.9,0.53330442]
[1736192156827,0.0075,3692.4,3691.5,0.7652]
[1736192157157,0.04883581,3692.3,3691.5,0.7652]
[1736192157783,0.04883581,3692.3,3691.3,0.53210979]
[1736192157784,0.0075,3692.0,3691.3,0.53210979]
[1736192157982,0.04878032,3691.9,3691.1,2.70917]
[1736192158279,0.0075,3691.8,3691.1,2.70917]
[1736192158574,0.04863825,3691.7,3691.1,2.70917]
[1736192158776,0.0075,3691.6,3691.2,2.70913]
[1736192158988,0.0075,3691.6,3691.3,3.49668867]
[1736192160422,0.0075,3692.0,3691.3,0.7652]
[1736192160619,0.0075,3691.8,3691.3,0.7652]
[1736192160767,0.04852371,3691.7,3691.3,0.7652]
[1736192160970,0.0075,3691.6,3691.3,0.7652]
[1736192161418,0.04851845,3691.5,3691.1,3.25052428]
[1736192162479,0.04851845,3691.5,3691.1,0.54132428]
[1736192164515,0.82221845,3691.5,3691.1,0.54132428]
[1736192165723,0.82971845,3691.5,3691.4,35.0]
[1736192166073,3.84736285,3691.5,3691.4,35.0]
[1736192166382,3.89585198,3691.5,3691.4,35.0]
[1736192167021,6.50516364,3691.5,3691.4,35.0]
[1736192167176,10.02130024,3691.5,3691.4,35.0]
[1736192168079,13.50112588,3691.5,3691.4,35.0]
[1736192168425,12.95112588,3691.5,3691.4,35.0]
[1736192169225,11.8155472,3691.5,3691.4,35.0]
[1736192170227,0.0075,3691.2,3690.2,2.70987]
[1736192170433,0.04592842,3691.1,3690.3,0.02245708]
[1736192170732,0.05342842,3691.1,3691.0,35.0]
[1736192172305,0.0075,3691.1,3691.0,35.0]
[1736192181699,0.05117666,3691.1,3691.0,35.0]
[1736192181900,0.0075,3691.1,3691.0,35.0]
[1736192182100,0.05117666,3691.1,3691.0,35.0]
[1736192182348,0.0075,3691.1,3691.0,35.0]
[1736192182529,0.05117666,3691.1,3691.0,35.0]
[1736192182870,0.05117765,3691.1,3691.0,35.0]
[1736192183399,1.12680942,3691.1,3691.0,35.0]
[1736192185160,0.85077765,3691.1,3691.0,35.0]
[1736192187665,0.04367765,3691.1,3691.0,35.7925]
[1736192187965,1.13361083,3691.5,3691.0,38.50177]
[1736192188260,0.04208374,3691.4,3691.2,0.7925]
[1736192188464,0.04208374,3691.4,3691.3,3.50157]
[1736192188663,1.13361083,3691.6,3691.3,35.7925]
[1736192188834,1.13361083,3691.6,3691.5,2.70892]
[1736192189030,1.13361083,3691.6,3691.5,3.50142]
[1736192189253,1.17580562,3691.6,3691.5,3.50142]
[1736192189463,1.17580562,3691.6,3691.5,38.50142]
[1736192189665,1.13361083,3691.6,3691.5,38.50142]
[1736192190558,0.7972,3692.7,3692.0,2.70851]
[1736192190559,1.14111083,3692.7,3692.0,2.70851]
[1736192190759,1.14111083,3692.7,3692.1,0.78292571]
[1736192190969,0.0075,3692.5,3692.1,0.78292571]
[1736192191171,0.04108751,3692.6,3692.1,0.78292571]
[1736192191172,0.04108751,3692.6,3692.4,35.0]
[1736192191376,1.13361083,3692.7,3692.4,35.0]
[1736192191671,1.13361083,3692.7,3692.2,2.70836]
[1736192192176,1.13361083,3692.7,3692.6,35.0]
[1736192192361,0.0075,3692.9,3692.6,35.0]
[1736192192560,0.0075,3692.9,3692.2,2.70836]
[1736192192939,0.0075,3692.9,3692.8,35.0]
[1736192196196,0.0474959,3692.9,3692.8,35.0]
[1736192197389,0.0399959,3692.9,3692.8,35.0]
[1736192197700,0.0075,3693.4,3692.8,35.0]
[1736192197875,0.0075,3693.2,3692.8,35.0]
[1736192198089,0.04027485,3693.1,3692.8,35.0]
[1736192198297,0.0075,3693.2,3692.8,35.0]
[1736192198612,0.04027485,3693.1,3692.8,35.0]
[1736192198997,2.71504,3693.4,3692.8,35.0]
[1736192199313,0.0075,3693.2,3692.8,35.0]
[1736192200168,0.0075,3693.3,3692.8,35.0]
[1736192200466,0.04027748,3693.2,3692.8,35.0]
[1736192200681,0.0075,3693.3,3692.8,35.0]
[1736192200880,0.04027748,3693.2,3692.8,35.0]
[1736192201209,0.0075,3693.3,3692.8,35.0]
[1736192201583,0.04027748,3693.2,3692.8,35.0]
[1736192201910,0.0075,3693.3,3692.8,35.0]
[1736192202068,0.04027748,3693.2,3692.8,35.0]
[1736192202268,0.0075,3693.3,3692.8,35.0]
[1736192202517,0.04027748,3693.2,3692.8,35.0]
[1736192202900,0.0075,3693.3,3692.8,35.0]
[1736192203216,0.04027748,3693.2,3692.8,35.0]
[1736192203516,0.0075,3693.3,3692.8,35.0]
[1736192203666,0.04027748,3693.2,3692.8,35.0]
[1736192203865,0.0075,3693.3,3692.8,35.0]
[1736192204084,0.04027748,3693.2,3692.8,35.0]
[1736192204284,0.0075,3693.3,3692.8,35.0]
[1736192204486,0.03893418,3693.2,3692.8,35.0]
[1736192204687,0.0075,3693.3,3692.8,35.0]
[1736192204922,0.03893418,3693.2,3692.8,35.0]
[1736192205422,0.0075,3693.3,3692.8,35.0]
[1736192205733,0.03893418,3693.2,3692.8,35.0]
[1736192206324,0.0075,3693.3,3692.8,35.0]
[1736192206695,0.03893418,3693.2,3692.8,35.0]
[1736192206897,0.0075,3693.3,3692.8,35.0]
[1736192207102,0.03893418,3693.2,3692.8,35.0]
[1736192207428,0.0075,3693.3,3692.8,35.0]
[1736192207593,0.35791853,3693.3,3692.8,35.0]
[1736192207929,0.03893418,3693.2,3692.8,35.0]
[1736192208122,0.35791853,3693.3,3692.8,35.0]
[1736192208312,0.03893155,3693.1,3692.8,35.0]
[1736192208628,0.0075,3693.3,3692.8,35.0]
[1736192209027,0.03893418,3693.2,3692.8,35.0]
[1736192209330,0.0075,3693.3,3692.8,35.0]
[1736192209494,0.0389243,3693.1,3692.8,35.0]
[1736192209694,0.0075,3693.3,3692.8,35.0]
[1736192209917,0.04642693,3693.2,3692.8,35.0]
[1736192216886,0.0075,3693.4,3692.9,0.02241291]
[1736192217082,0.03781631,3693.3,3692.9,0.02241291]
[1736192217399,0.03781631,3693.3,3693.0,0.8278]
[1736192217584,2.70723,3693.9,3693.1,0.02240577]
[1736192217786,0.03806918,3693.2,3693.1,0.02240577]
[1736192217985,0.0075,3693.8,3693.1,0.02240577]
[1736192218209,0.03810389,3693.2,3693.1,0.02240577]
[1736192218413,0.0075,3693.8,3693.1,0.02240577]
[1736192218729,0.0075,3693.6,3693.1,0.02240577]
[1736192219031,0.0075,3693.6,3693.4,35.0]
[1736192219032,0.03811042,3693.5,3693.4,35.0]
[1736192219600,0.03811042,3693.5,3693.4,35.8278]
[1736192219802,1.45158963,3694.0,3693.4,35.8278]
[1736192219982,1.45158963,3694.0,3693.4,0.8278]
[1736192220400,0.03841603,3693.9,3693.4,0.8278]
[1736192220853,0.0075,3694.1,3693.4,0.8278]
[1736192221062,0.0075,3694.1,3693.8,35.0]
[1736192221289,0.0075,3694.2,3693.4,0.8278]
[1736192221719,0.0075,3694.2,3694.0,35.0]
[1736192222115,0.7886,3694.6,3694.0,35.7833]
[1736192222345,3.49527,3694.6,3694.0,35.7833]
[1736192222548,0.0075,3694.5,3694.0,35.7833]
[1736192222745,0.0075,3694.5,3694.1,0.02239245]
[1736192223126,0.0075,3694.5,3694.4,35.0]
[1736192223347,2.70658,3694.7,3694.4,35.0]
[1736192223547,3.47211243,3694.7,3694.4,35.0]
[1736192223747,0.0075,3694.6,3694.4,35.0]
[1736192224072,2.71415,3694.6,3694.4,35.0]
[1736192224718,2.71422,3694.5,3694.4,35.0]
[1736192225062,0.0075,3693.9,3693.4,0.7614]
[1736192225423,0.7927,3694.4,3693.8,35.0]
[1736192226066,2.57544826,3694.8,3693.5,2.70745]
[1736192226067,0.0386,3694.3,3694.2,3.46444]
[1736192226385,1.09361083,3695.1,3694.8,2.7065]
[1736192226579,1.09361083,3695.1,3694.3,2.70682]
[1736192226580,1.09361083,3695.1,3694.9,3.48628768]
[1736192226882,0.03629652,3695.0,3694.9,4.03112117]
[1736192227250,0.03629652,3695.0,3694.9,39.00874349]
[1736192227635,2.82389991,3695.7,3694.9,39.00874349]
[1736192227636,0.0075,3695.9,3694.9,36.30233349]
[1736192227813,0.0075,3695.9,3695.0,2.70632]
[1736192228042,0.0075,3695.7,3695.0,2.70632]
[1736192228264,0.0075,3695.7,3695.6,35.0]
[1736192231668,3.06976032,3695.7,3695.6,35.0]
[1736192231865,0.0075,3695.5,3694.6,0.7614]
[1736192232073,2.61677728,3695.5,3694.6,0.7614]
[1736192232376,2.61677728,3695.5,3695.0,35.0]
[1736192232563,0.04132902,3695.5,3695.0,35.0]
[1736192232765,0.99210178,3695.5,3695.0,35.0]
[1736192234290,0.0075,3695.5,3695.0,35.0]
[1736192234442,0.0075,3695.5,3694.8,2.7065]
[1736192234627,0.0075,3695.5,3694.9,0.02237517]
[1736192234961,0.0075,3695.5,3695.4,35.0]
[1736192236160,0.86242604,3696.0,3695.4,35.0]
[1736192236526,0.04432524,3695.9,3695.4,35.0]
[1736192237025,0.04432524,3695.9,3695.0,3.46773]
[1736192237251,0.04432524,3695.9,3695.1,0.02237065]
[1736192237453,0.0075,3695.7,3695.0,0.7614]
[1736192237721,0.0075,3695.5,3694.7,0.8013]
[1736192237950,0.0075,3695.3,3694.7,0.8013]
[1736192238125,0.04132746,3695.3,3694.7,0.8013]
[1736192238327,0.04132746,3695.3,3694.4,1.33321373]
[1736192238328,0.0075,3695.1,3694.4,1.33321373]
[1736192238669,0.0075,3694.9,3694.4,1.33321373]
[1736192239042,0.03685711,3694.8,3694.4,1.33321373]
[1736192239243,0.03685711,3694.8,3694.5,0.02238102]
[1736192239771,0.03685711,3694.8,3694.4,1.33321373]
[1736192240171,0.03685711,3694.8,3694.5,0.02238106]
[1736192240380,0.03685711,3694.8,3694.4,4.03998373]
[1736192240589,0.0075,3694.9,3694.5,0.02238108]
[1736192240787,0.0075,3694.9,3694.4,4.03998373]
[1736192241001,0.03675298,3694.8,3694.5,0.02238105]
[1736192241359,0.0075,3694.9,3694.5,0.02238105]
[1736192241558,2.70609,3695.4,3694.5,2.72910105]
[1736192241559,0.0075,3695.4,3694.5,2.72910105]
[1736192241787,0.03675298,3694.8,3694.5,2.72910105]
[1736192242061,0.0075,3695.4,3694.6,2.70664]
[1736192242282,0.03675036,3694.7,3694.6,2.70664]
[1736192242491,0.0075,3695.4,3694.6,2.70664]
[1736192242804,0.0367661,3695.3,3694.6,2.70664]
[1736192244166,0.07059523,3695.3,3694.6,2.70664]
[1736192244368,0.0367661,3695.3,3694.6,2.70664]
[1736192244681,0.0367661,3695.3,3694.7,0.02238065]
[1736192245080,0.03681121,3695.2,3694.8,0.7926]
[1736192245268,0.03681121,3695.2,3695.0,2.70629]
[1736192245471,0.8017,3695.9,3695.3,2.70612]
[1736192245687,0.03682695,3695.8,3695.2,0.7926]
[1736192246128,0.0075,3695.7,3694.9,0.7926]
[1736192246422,0.0075,3695.7,3695.0,0.02237367]
[1736192246423,0.0075,3695.5,3695.0,0.02237367]
[1736192246623,0.0075,3695.5,3695.0,0.02237372]
[1736192246859,0.0373763,3695.4,3695.1,2.70628]
[1736192247126,0.0075,3695.8,3695.2,2.70619]
[1736192247481,0.03745792,3695.7,3695.2,2.70619]
[1736192247825,0.03745792,3695.7,3695.0,2.70632]
[1736192249889,0.0075,3695.6,3694.6,2.70659]
[1736192250126,0.0075,3695.4,3694.1,0.19]
[1736192250332,0.03617732,3695.3,3694.9,0.7912]
[1736192251515,0.03617732,3695.3,3694.4,2.70679]
[1736192251516,0.0075,3695.2,3694.4,2.70679]
[1736192251690,0.0075,3695.2,3694.5,0.02237961]
[1736192251896,0.0075,3695.0,3694.5,0.02237961]
[1736192252233,0.03632299,3694.9,3694.5,0.02237961]
[1736192252405,0.03632299,3694.9,3694.5,2.72904961]
[1736192252733,0.0075,3695.0,3694.5,2.72904961]
[1736192252933,0.0075,3695.0,3694.6,0.53962872]
[1736192253102,0.0075,3695.0,3694.7,0.02237957]
[1736192253503,0.7899,3694.9,3694.3,2.70685]
[1736192253821,0.03628133,3694.8,3694.3,2.70685]
[1736192254035,0.03628133,3694.8,3694.2,0.7912]
[1736192254230,2.74280133,3694.8,3693.8,2.70717]
[1736192254461,0.0075,3694.7,3693.6,0.8043]
[1736192254667,0.0075,3694.7,3693.9,0.53432179]
[1736192254869,0.03616051,3694.6,3693.9,0.53432179]
[1736192255071,0.0075,3694.5,3693.9,0.53432179]
[1736192255294,0.755,3694.4,3693.9,0.53432179]
[1736192255427,0.79115526,3694.4,3693.9,0.53432179]
[1736192256565,0.79115526,3694.4,3693.8,2.70717]
[1736192256765,0.79115526,3694.4,3693.6,0.8043]
[1736192256925,2.74820566,3694.3,3693.2,0.8124]
[1736192257124,0.0075,3694.1,3693.3,2.7076]
[1736192257325,0.03596768,3694.0,3693.3,2.7076]
[1736192257527,0.8059,3693.9,3693.2,0.8124]
[1736192257739,0.03594941,3693.8,3693.3,2.7076]
[1736192261274,0.03594941,3693.8,3693.4,2.72989143]
[1736192261574,0.8059,3693.9,3693.2,1.34778547]
[1736192261780,0.8059,3693.9,3693.2,4.05543547]
[1736192261983,0.0336959,3693.8,3693.2,1.34778547]
[1736192262187,0.0336959,3693.8,3693.3,2.72999143]
[1736192262360,0.0336959,3693.8,3693.3,2.70759]
[1736192262848,0.0336959,3693.8,3693.4,0.02240139]
[1736192263052,0.0336959,3693.8,3693.3,2.70759]
[1736192266194,0.02478371,3693.8,3693.3,2.70759]
[1736192266699,0.8059,3693.9,3693.3,2.70759]
[1736192268485,0.8059,3693.9,3693.4,0.02240147]
[1736192269100,0.8059,3693.9,3693.2,1.34778547]
[1736192269396,0.8059,3693.9,3693.2,0.53538547]
[1736192275432,0.0075,3693.8,3693.2,0.53538547]
[1736192275628,0.7911,3693.7,3692.9,2.70789]
[1736192276128,0.7911,3693.7,3693.0,0.54208234]
[1736192276288,0.7911,3693.7,3693.0,3.24990234]
[1736192277514,0.0075,3693.6,3692.7,0.7825]
[1736192277861,0.7911,3693.5,3692.4,0.8192]
[1736192278154,3.49856,3693.5,3692.7,0.54056542]
[1736192278317,0.7911,3693.4,3692.7,0.54056542]
[1736192278514,0.0075,3693.3,3692.4,0.8192]
[1736192278933,0.0075,3693.3,3692.5,2.70818]
[1736192279448,0.0075,3693.3,3692.6,2.70811]
[1736192279627,0.7911,3693.4,3692.8,2.70792]
[1736192279956,0.7911,3693.4,3692.9,2.73030023]
[1736192280255,0.7601,3693.8,3693.1,2.70774]
[1736192280457,0.7601,3693.8,3693.2,0.02240471]
[1736192280644,0.7601,3693.8,3693.4,2.70752]
[1736192280978,1.88791557,3694.2,3693.5,2.7074]
[1736192281265,0.7601,3694.2,3693.5,2.7074]
[1736192282028,0.7601,3694.2,3693.6,2.72974623]
[1736192282256,0.7601,3694.2,3693.6,3.56024623]
[1736192282444,0.7601,3694.2,3693.6,3.53785]
[1736192284256,0.7601,3694.2,3693.6,2.70735]
[1736192285830,0.7601,3694.2,3694.1,35.0]
[1736192286365,3.0,3694.8,3694.1,35.0]
[1736192286566,3.94096538,3694.8,3693.6,2.70735]
[1736192286928,2.70657,3694.7,3694.6,35.0]
[1736192288572,2.71407,3694.7,3694.6,35.0]
[1736192289368,3.49757,3694.7,3694.6,35.0]
[1736192291625,0.7835,3694.5,3693.6,2.70737]
[1736192292064,0.7835,3694.5,3694.0,35.0]
[1736192292830,0.7835,3694.5,3693.7,3.48129]
[1736192293126,0.7835,3694.5,3693.8,0.02706877]
[1736192293327,0.791,3694.5,3694.4,35.0]
[1736192294426,0.7835,3694.5,3694.4,35.0]
[1736192294638,0.7822,3695.0,3694.4,35.0]
[1736192294868,0.7822,3695.0,3693.7,3.34944826]
[1736192295063,0.7822,3695.0,3694.1,0.824]
[1736192295286,1.12781557,3695.1,3694.9,35.0]
[1736192295436,1.70278079,3695.1,3694.9,35.0]
[1736192295808,1.70278079,3695.1,3694.8,2.70648]
[1736192296287,1.70278079,3695.1,3695.0,35.0]
[1736192296666,1.70278079,3695.1,3695.0,35.8198]
[1736192296854,1.70278079,3695.1,3695.0,38.52615]
[1736192297057,1.70278079,3695.1,3695.0,37.70635]
[1736192297394,0.7911,3695.5,3695.0,37.70635]
[1736192297692,0.7911,3695.5,3695.0,2.70635]
[1736192297991,0.7911,3695.5,3695.2,35.0]
[1736192300583,0.7808,3695.8,3694.7,0.8198]
[1736192300880,0.7808,3695.8,3694.8,2.70647]
[1736192301111,0.7808,3695.8,3695.7,35.0]
[1736192301695,0.80808353,3695.8,3695.7,35.0]
[1736192305030,0.7808,3695.8,3695.7,35.0]
[1736192305263,0.7695,3696.1,3695.7,35.0]
[1736192305596,0.7695,3696.1,3695.5,2.70599]
[1736192306140,0.7695,3696.1,3695.9,35.0]
[1736192307946,0.783,3696.4,3695.9,35.0]
[1736192308143,0.0075,3696.3,3695.9,35.0]
[1736192309346,0.02369761,3696.2,3695.9,35.0]
[1736192309697,0.0075,3696.3,3695.9,35.0]
[1736192309915,0.02369498,3696.1,3695.9,35.0]
[1736192310110,0.0075,3696.3,3695.9,35.0]
[1736192310345,0.02369352,3696.0,3695.9,35.0]
[1736192310963,3.48833,3696.4,3695.9,35.0]
[1736192313654,0.783,3696.4,3695.9,35.0]
[1736192315957,0.783,3696.4,3695.2,2.57544826]
[1736192315958,2.25955023,3697.0,3696.0,0.8069551]
[1736192316097,2.25955023,3697.0,3696.2,2.70545]
[1736192316299,2.25955023,3697.0,3696.7,35.0]
[1736192316528,1.14039457,3697.3,3696.7,35.0]
[1736192316529,1.13289457,3697.3,3696.8,0.02705027]
[1736192316805,1.13289457,3697.2,3696.8,2.73208027]
[1736192317213,1.13289457,3697.2,3697.1,35.0]
[1736192318719,0.7515,3697.5,3697.1,35.0]
[1736192319153,0.7515,3697.5,3696.7,3.4986]
[1736192319621,0.7515,3697.5,3697.4,35.0]
[1736192320939,3.809126,3697.5,3697.4,35.0]
[1736192323339,3.46353,3697.5,3697.4,35.0]
[1736192323702,0.7515,3697.5,3697.4,35.0]
[1736192323929,0.7515,3697.5,3696.6,2.70518]
[1736192324113,0.7515,3697.5,3696.8,0.7899]
[1736192324318,0.7515,3697.5,3697.4,35.0]
[1736192324752,0.0075,3697.7,3697.4,35.0]
[1736192325118,2.71188,3697.7,3697.4,35.0]
[1736192326356,0.0075,3697.7,3697.4,35.0]
[1736192326532,2.70448,3697.6,3697.4,35.0]
[1736192327958,2.71203,3697.5,3697.4,35.0]
[1736192328143,3.52533,3697.5,3697.4,35.0]
[1736192329965,0.8133,3697.5,3697.4,35.0]
[1736192330128,3.7698,3697.8,3697.4,35.0]
[1736192330329,0.0075,3697.7,3697.1,0.7892]
[1736192330741,0.0075,3697.7,3697.6,35.0]
[1736192331040,4.02983457,3698.4,3697.7,0.7578]
[1736192331041,1.13789457,3698.4,3697.7,0.7578]
[1736192331241,1.13789457,3698.4,3697.9,2.57544826]
[1736192331438,0.02531107,3698.3,3698.0,0.02703805]
[1736192331645,0.02531107,3698.3,3698.2,35.0]
[1736192332050,0.005,3698.4,3698.2,35.0]
[1736192332237,0.005,3698.4,3698.3,0.7507]
[1736192332669,0.005,3698.4,3698.3,35.7507]
[1736192336491,0.005,3698.4,3698.3,35.0]
[1736192337900,0.005,3698.4,3698.3,35.7936]
[1736192338497,0.005,3698.4,3698.3,35.0]
[1736192344420,2.71637,3698.4,3698.3,35.0]
[1736192344623,3.872193,3698.4,3698.3,35.0]
[1736192346703,3.872193,3698.4,3696.2,7.76]
[1736192346704,0.0075,3698.2,3696.5,0.819]
[1736192346898,2.70424,3697.9,3696.8,2.70497]
[1736192347134,0.0075,3697.8,3697.5,35.0]
[1736192347793,2.70424,3697.9,3697.5,35.0]
[1736192348435,3.0,3698.0,3697.5,35.0]
[1736192348595,0.7644,3698.3,3697.2,2.70472]
[1736192348794,2.71154,3698.2,3697.2,2.70472]
[1736192349033,2.71154,3698.2,3697.9,35.0]
[1736192349433,2.70409,3698.1,3697.9,35.0]
[1736192349739,3.059259,3698.0,3697.9,35.0]
[1736192350030,2.71166,3698.0,3697.9,35.0]
[1736192354331,3.48176,3698.0,3697.9,35.0]
[1736192357854,2.71166,3698.0,3697.9,35.0]
[1736192358144,5.71166,3698.0,3697.9,35.0]
[1736192360017,2.70425,3697.9,3697.0,0.819]
[1736192360412,2.70425,3697.9,3697.1,0.02704427]
[1736192360648,0.0075,3697.9,3697.6,35.0]
[1736192361230,2.71173,3697.9,3697.6,35.0]
[1736192365266,2.70431,3697.8,3697.6,35.0]
[1736192367682,0.0075,3697.9,3697.6,35.0]
[1736192368532,1.13289457,3698.1,3697.5,0.8331]
[1736192368753,1.13289457,3698.1,3697.5,0.86014211]
[1736192369260,1.13289457,3698.1,3698.0,35.0]
[1736192369975,2.70401,3698.2,3698.0,35.0]
[1736192370258,0.0075,3698.3,3697.5,0.8331]
[1736192370462,0.0075,3698.3,3697.5,0.86014213]
[1736192370958,0.0075,3698.3,3697.5,0.8331]